fUSD/lending_fUSD_20260404
["ID","MTS","AMOUNT","RATE_DAILY","PERIOD"]
[419726911,1775339446335,-150.0,0.00015508,2]
[419726912,1775339446349,-150.0,0.00015515,2]
[419726913,1775339446365,-150.0,0.00015525,2]
[419726914,1775339446376,-150.0,0.00015526,2]
[419726915,1775339446387,-150.0,0.00015532,2]
[419726916,1775339446398,-150.0,0.00015533,2]
[419726917,1775339446412,-150.0,0.00015533,2]
[419726918,1775339446425,-150.0,0.00015539,2]
[419726919,1775339446437,-150.0,0.00015543,2]
[419726920,1775339446451,-150.0,0.0001555,2]
[419726921,1775339446464,-150.0,0.00015557,2]
[419726922,1775339446480,-150.0,0.00015564,2]
[419726923,1775339446492,-150.0,0.00015567,2]
[419726924,1775339446503,-150.0,0.00015567,2]
[419726925,1775339446515,-150.0,0.00015575,2]
[419726926,1775339446526,-150.0,0.00015582,2]
[419726927,1775339446538,-3601.097,0.00015585,2]
[419726928,1775339446550,-176.321,0.00015585,2]
[419726929,1775339446564,-150.0,0.00015585,2]
[419726930,1775339446578,-150.0,0.00015588,2]
[419726931,1775339446593,-150.0,0.000156,2]
[419726932,1775339446606,-150.0,0.000156,2]
[419726933,1775339446618,-150.0,0.000156,2]
[419726934,1775339446631,-150.0,0.000156,2]
[419726935,1775339446644,-2000.0,0.00015601,2]
[419726936,1775339446658,-150.0,0.00015606,2]
[419726937,1775339446672,-150.0,0.00015612,2]
[419726938,1775339446685,-150.0,0.00015625,2]
[419726939,1775339446698,-150.0,0.00015631,2]
[419726940,1775339446712,-150.0,0.00015633,2]
[419726941,1775339446725,-150.0,0.00015633,2]
[419726942,1775339446739,-150.0,0.00015636,2]
[419726943,1775339446752,-150.0,0.00015644,2]
[419726944,1775339446775,-150.0,0.0001565,2]
[419726945,1775339446787,-150.0,0.00015655,2]
[419726946,1775339446800,-150.0,0.00015661,2]
[419726947,1775339446812,-150.0,0.00015667,2]
[419726948,1775339446824,-150.0,0.00015667,2]
[419726949,1775339446837,-150.0,0.00015675,2]
[419726950,1775339446849,-150.0,0.0001568,2]
[419726951,1775339446861,-30714.87942069,0.00015682,2]
[419726952,1775339446873,-150.0,0.00015685,2]
[419726953,1775339446886,-150.0,0.000157,2]
[419726954,1775339446899,-150.0,0.000157,2]
[419726955,1775339446912,-150.0,0.000157,2]
[419726956,1775339446926,-1100.0,0.000157,5]
[419726957,1775339446938,-2000.0,0.00015701,2]
[419726958,1775339446950,-150.0,0.00015704,2]
[419726959,1775339446963,-150.0,0.00015705,2]
[419726960,1775339446975,-150.0,0.00015709,2]
[419726961,1775339446987,-500.0,0.00015719,2]
[419726962,1775339447000,-150.0,0.00015725,2]
[419726963,1775339447013,-150.0,0.00015729,2]
[419726964,1775339447026,-1129.0,0.0001573,2]
[419726965,1775339447038,-150.0,0.00015733,2]
[419726966,1775339447050,-150.0,0.00015733,2]
[419726968,1775339447063,-150.0,0.00015733,2]
[419726969,1775339447074,-150.0,0.0001575,2]
[419726970,1775339447086,-245.407609,0.00015753,2]
[419726971,1775339447098,-150.0,0.00015754,2]
[419726972,1775339447110,-1129.0,0.00015756,2]
[419726973,1775339447122,-150.0,0.00015758,2]
[419726974,1775339447136,-150.0,0.00015763,2]
[419726975,1775339447148,-150.0,0.00015767,2]
[419726976,1775339447160,-150.0,0.00015767,2]
[419726977,1775339447172,-150.0,0.00015771,2]
[419726978,1775339447184,-150.0,0.00015775,2]
[419726979,1775339447196,-150.0,0.00015778,2]
[419726980,1775339447208,-150.0,0.00015782,2]
[419726981,1775339447220,-511.0,0.00015787,4]
[419726982,1775339447232,-150.0,0.000158,2]
[419726983,1775339447244,-150.0,0.000158,2]
[419726984,1775339447256,-150.0,0.000158,2]
[419726985,1775339447268,-1100.0,0.000158,5]
[419726986,1775339447280,-2000.0,0.00015801,2]
[419726987,1775339447291,-150.0,0.00015803,2]
[419726988,1775339447304,-150.0,0.00015806,2]
[419726989,1775339447316,-1600.0,0.00015819,2]
[419726990,1775339447328,-24984.01404667,0.0001582,2]
[419726991,1775339447341,-150.0,0.00015822,2]
[419726992,1775339447352,-150.0,0.00015825,2]
[419726993,1775339447365,-150.0,0.00015828,2]
[419726994,1775339447376,-150.0,0.0001583,2]
[419726995,1775339447389,-36287.8161148,0.00015831,2]
[419726996,1775339447401,-150.0,0.00015833,2]
[419726997,1775339447414,-150.0,0.00015833,2]
[419726998,1775339447427,-150.0,0.0001585,2]
[419726999,1775339447439,-150.0,0.00015852,2]
[419727000,1775339447451,-150.0,0.00015855,2]
[419727001,1775339447462,-150.0,0.00015867,2]
[419727002,1775339447474,-150.0,0.00015867,2]
[419727003,1775339447487,-150.0,0.00015873,2]
[419727004,1775339447499,-150.0,0.00015873,2]
[419727005,1775339447511,-150.0,0.00015873,2]
[419727006,1775339447522,-150.0,0.00015873,2]
[419727007,1775339447534,-150.0,0.00015873,2]
[419727008,1775339447547,-150.0,0.00015873,2]
[419727009,1775339447559,-150.0,0.00015875,2]
[419727010,1775339447572,-150.0,0.00015877,2]
[419727011,1775339447585,-150.0,0.00015879,2]
[419727012,1775339447597,-150.0,0.00015881,2]
[419727013,1775339447609,-500.0,0.0001589,2]
[419727014,1775339447620,-519.17533645,0.0001589,2]
[419727015,1775339447632,-2500.0,0.0001589,2]
[419727016,1775339447644,-2000.0,0.0001589,2]
[419727017,1775339447656,-604.90515633,0.000159,2]
[419727018,1775339447668,-150.0,0.000159,2]
[419727019,1775339447680,-150.0,0.000159,2]
[419727020,1775339447692,-150.0,0.000159,2]
[419727021,1775339447704,-164.66331619,0.000159,2]
[419727022,1775339447716,-1100.0,0.000159,5]
[419727023,1775339447728,-198.39010279,0.000159,2]
[419727024,1775339447740,-5394.69197318,0.000159,2]
[419727025,1775339447752,-209.19329818,0.000159,2]
[419727026,1775339447764,-2000.0,0.00015901,2]
[419727027,1775339447776,-150.0,0.00015902,2]
[419727028,1775339447788,-150.0,0.00015903,2]
[419727029,1775339447800,-150.0,0.00015925,2]
[419727030,1775339447812,-150.0,0.00015926,2]
[419727031,1775339447825,-150.0,0.00015927,2]
[419727032,1775339447837,-148273.811504,0.00015931,2]
[419727033,1775339447849,-74538.5117074,0.00015931,2]
[419727034,1775339447861,-170.6763195,0.00015931,2]
[419727035,1775339447872,-20342.8440329,0.00015931,2]
[419727036,1775339447884,-383.787478,0.00015931,2]
[419727037,1775339447896,-383.787478,0.00015931,2]
[419727038,1775339447907,-383.787478,0.00015931,2]
[419727039,1775339447919,-383.787478,0.00015931,2]
[419727040,1775339447931,-755.627624,0.00015931,2]
[419727041,1775339447943,-451.57947,0.00015931,2]
[419727042,1775339447954,-755.627624,0.00015931,2]
[419727043,1775339447966,-451.57947,0.00015931,2]
[419727044,1775339447978,-755.627624,0.00015931,2]
[419727045,1775339447990,-451.57947,0.00015931,2]
[419727046,1775339448001,-755.627624,0.00015931,2]
[419727047,1775339448013,-451.57947,0.00015931,2]
[419727048,1775339448024,-150.0,0.00015933,2]
[419727049,1775339448035,-150.0,0.00015933,2]
[419727050,1775339448048,-150.0,0.00015941,2]
[419727051,1775339448059,-150.0,0.0001595,2]
[419727052,1775339448072,-150.0,0.00015951,2]
[419727053,1775339448084,-150.0,0.00015952,2]
[419727054,1775339448096,-150.0,0.00015967,2]
[419727055,1775339448109,-150.0,0.00015967,2]
[419727056,1775339448122,-500.0,0.00015973,2]
[419727057,1775339448135,-500.0,0.00015973,2]
[419727058,1775339448147,-503.37341793,0.00015973,2]
[419727059,1775339448159,-500.0,0.00015973,2]
[419727060,1775339448171,-385.69863661,0.00015973,2]
[419727061,1775339448183,-500.0,0.00015973,2]
[419727062,1775339448195,-419.81066253,0.00015973,2]
[419727063,1775339448208,-501.1834914,0.00015973,2]
[419727064,1775339448219,-500.0,0.00015973,2]
[419727065,1775339448231,-500.0,0.00015973,2]
[419727066,1775339448242,-500.0,0.00015973,2]
[419727067,1775339448253,-500.0,0.00015973,2]
[419727068,1775339448264,-500.0,0.00015973,2]
[419727069,1775339448275,-500.0,0.00015973,2]
[419727070,1775339448287,-500.0,0.00015973,2]
[419727071,1775339448298,-500.0,0.00015973,2]
[419727072,1775339448310,-500.0,0.00015973,2]
[419727073,1775339448321,-500.0,0.00015973,2]
[419727074,1775339448332,-500.0,0.00015973,2]
[419727075,1775339448344,-500.0,0.00015973,2]
[419727076,1775339448356,-500.0,0.00015973,2]
[419727077,1775339448367,-500.0,0.00015973,2]
[419727078,1775339448378,-500.0,0.00015973,2]
[419727079,1775339448389,-500.0,0.00015973,2]
[419727080,1775339448401,-178.83121777,0.00015973,2]
[419727081,1775339448413,-500.0,0.00015973,2]
[419727082,1775339448424,-518.91238386,0.00015973,2]
[419727083,1775339448435,-500.0,0.00015973,2]
[419727084,1775339448446,-500.0,0.00015973,2]
[419727085,1775339448457,-500.0,0.00015973,2]
[419727086,1775339448468,-200.0,0.00015973,2]
[419727087,1775339448480,-200.0,0.00015973,2]
[419727088,1775339448492,-2000.0,0.00015973,2]
[419727089,1775339448504,-1000.0,0.00015973,2]
[419727090,1775339448516,-1000.0,0.00015973,2]
[419727091,1775339448527,-150.0,0.00015975,2]
[419727092,1775339448539,-150.0,0.00015975,2]
[419727093,1775339448551,-150.0,0.00015976,2]
[419727094,1775339448563,-415.31566239,0.0001599,2]
[419727095,1775339448576,-3826.0,0.00015996,2]
[419727096,1775339448589,-151.0,0.00015996,2]
[419727097,1775339448600,-484.882971,0.00015996,2]
[419727098,1775339448612,-151.0,0.00015996,2]
[419727099,1775339448625,-151.0,0.00015996,2]
[419727100,1775339448636,-484.882971,0.00015996,2]
[419727101,1775339448647,-151.0,0.00015996,2]
[419727102,1775339448659,-151.0,0.00015996,2]
[419727103,1775339448670,-484.882971,0.00015996,2]
[419727104,1775339448681,-151.0,0.00015996,2]
[419727105,1775339448692,-484.882971,0.00015996,2]
[419727106,1775339448703,-151.0,0.00015997,2]
[419727107,1775339448714,-155.0,0.00015999,2]
[419727108,1775339448725,-150.0,0.00016,2]
[419727109,1775339448738,-150.0,0.00016,2]
[419727110,1775339448749,-150.0,0.00016,2]
[419727111,1775339448761,-150.0,0.00016,2]
[419727112,1775339448773,-150.0,0.00016,2]
[419727113,1775339448784,-150.0,0.00016,2]
[419727114,1775339448793,-150.0,0.00016,2]
[419727115,1775339448804,-150.0,0.00016,2]
[419727116,1775339449118,-150.0,0.00016,2]
[419727117,1775339449263,-58211.85002266,0.00016,2]
[419727118,1775339449785,-2275.98803234,0.00016,2]
[419727119,1775339450428,-1117.73621279,0.00012072,2]
[419727120,1775339450540,-1382.26378721,0.00012072,2]
[419727121,1775339450550,-176.135928,0.00015239,2]
[419727122,1775339450559,-138847.92354991,0.00016,2]
[419727123,1775339450571,-2048.23499573,0.00016,2]
[419727124,1775339450605,-16339.72992309,0.00016,2]
[419727125,1775339451268,-783.99,0.00011507,2]
[419727126,1775339451278,-6805.22147966,0.00016,2]
[419727127,1775339451289,-4843.23541158,0.00016,2]
[419727128,1775339451301,-335.04991627,0.00016,2]
[419727129,1775339451979,-169.36199739,0.000115,2]
[419727130,1775339451989,-4243.24380261,0.00016,2]
[419727131,1775339452042,-500.0,0.00013698,2]
[419727132,1775339452052,-41576.81090496,0.00016,2]
[419727185,1775340631567,-699.0,0.0001,2]
[419727186,1775340631576,-1.05,0.00011124,2]
[419727187,1775340631623,-204.43,0.00011124,2]
[419727188,1775340631632,-200.0,0.00011316,2]
[419727189,1775340631642,-156.93,0.00011377,2]
[419727206,1775340632164,-1025.73,0.00011377,2]
[419727207,1775340632173,-5481.25054761,0.00011419,2]
[419727208,1775340632183,-300.0,0.0001142,2]
[419727209,1775340632192,-300.0,0.0001142,2]
[419727210,1775340632212,-1200.0,0.0001142,2]
[419727211,1775340632222,-30714.87942071,0.00011421,2]
[419727212,1775340632232,-500.0,0.00011473,2]
[419727213,1775340632241,-500.0,0.00011473,2]
[419727214,1775340632250,-500.0,0.00011473,2]
[419727215,1775340632260,-500.0,0.00011473,2]
[419727216,1775340632269,-500.0,0.00011473,2]
[419727217,1775340632278,-503.0948792,0.00011473,2]
[419727218,1775340632287,-500.0,0.00011473,2]
[419727219,1775340632297,-500.0,0.00011473,2]
[419727220,1775340632307,-150.0,0.00011491,2]
[419727221,1775340632316,-165.03780966,0.00011492,2]
[419727222,1775340632326,-608.04009613,0.00011492,2]
[419727223,1775340632335,-500.0,0.00011492,2]
[419727224,1775340632345,-608.04009613,0.00011492,2]
[419727225,1775340632356,-608.04009613,0.00011492,2]
[419727226,1775340632366,-500.0,0.00011492,2]
[419727227,1775340632378,-608.04009613,0.00011492,2]
[419727228,1775340632388,-608.04009613,0.00011492,2]
[419727229,1775340632398,-608.04009613,0.00011492,2]
[419727230,1775340632407,-608.04009613,0.00011492,2]
[419727231,1775340632416,-454.5783812,0.00011492,2]
[419727232,1775340632428,-153.46171493,0.00011492,2]
[419727233,1775340632437,-608.04009613,0.00011492,2]
[419727234,1775340632446,-608.04009613,0.00011492,2]
[419727235,1775340632455,-608.04009613,0.00011492,2]
[419727236,1775340632464,-608.04009613,0.00011492,2]
[419727237,1775340632474,-608.04009613,0.00011492,2]
[419727238,1775340632483,-608.04009613,0.00011492,2]
[419727239,1775340632493,-608.04009613,0.00011492,2]
[419727240,1775340632502,-608.04009613,0.00011492,2]
[419727241,1775340632512,-608.04009613,0.00011492,2]
[419727242,1775340632521,-608.04009613,0.00011492,2]
[419727243,1775340632530,-608.04009613,0.00011492,2]
[419727244,1775340632539,-608.04009613,0.00011492,2]
[419727245,1775340632548,-608.04009613,0.00011492,2]
[419727246,1775340632574,-608.04009613,0.00011492,2]
[419727247,1775340632590,-608.04009613,0.00011492,2]
[419727248,1775340632607,-608.04009613,0.00011492,2]
[419727249,1775340632619,-608.04009613,0.00011492,2]
[419727250,1775340632634,-608.04009613,0.00011492,2]
[419727251,1775340632648,-608.04009613,0.00011492,2]
[419727252,1775340632663,-608.04009613,0.00011492,2]
[419727253,1775340632677,-608.04009613,0.00011492,2]
[419727254,1775340632696,-608.04009613,0.00011492,2]
[419727255,1775340632714,-608.04009613,0.00011492,2]
[419727256,1775340632728,-608.04009613,0.00011492,2]
[419727257,1775340632743,-608.04009613,0.00011492,2]
[419727258,1775340632757,-608.04009613,0.00011492,2]
[419727259,1775340632769,-608.04009613,0.00011492,2]
[419727260,1775340632782,-608.04009613,0.00011492,2]
[419727261,1775340632793,-608.04009613,0.00011492,2]
[419727262,1775340632804,-608.04009613,0.00011492,2]
[419727263,1775340632817,-608.04009613,0.00011492,2]
[419727264,1775340632832,-608.04009613,0.00011492,2]
[419727265,1775340632845,-608.04009613,0.00011492,2]
[419727266,1775340632859,-608.04009613,0.00011492,2]
[419727267,1775340632873,-608.04009613,0.00011492,2]
[419727268,1775340632887,-608.04009613,0.00011492,2]
[419727269,1775340632903,-608.04009613,0.00011492,2]
[419727270,1775340632916,-608.04009613,0.00011492,2]
[419727271,1775340632926,-608.04009613,0.00011492,2]
[419727272,1775340632939,-608.04009613,0.00011492,2]
[419727273,1775340632952,-608.04009613,0.00011492,2]
[419727274,1775340632966,-608.04009613,0.00011492,2]
[419727275,1775340632976,-608.04009613,0.00011492,2]
[419727276,1775340632991,-608.04009613,0.00011492,2]
[419727277,1775340633006,-608.04009613,0.00011492,2]
[419727278,1775340633022,-608.04009613,0.00011492,2]
[419727279,1775340633041,-608.04009613,0.00011492,2]
[419727280,1775340633054,-608.04009613,0.00011492,2]
[419727281,1775340633065,-608.04009613,0.00011492,2]
[419727282,1775340633077,-608.04009613,0.00011492,2]
[419727283,1775340633089,-608.04009613,0.00011492,2]
[419727284,1775340633126,-608.04009613,0.00011492,2]
[419727285,1775340633141,-823.53896672,0.00011492,2]
[419727286,1775340633161,-823.53896672,0.00011492,2]
[419727287,1775340633177,-823.53896672,0.00011492,2]
[419727288,1775340633192,-823.53896672,0.00011492,2]
[419727289,1775340633207,-823.53896672,0.00011492,2]
[419727290,1775340633223,-823.53896672,0.00011492,2]
[419727291,1775340633238,-823.53896672,0.00011492,2]
[419727292,1775340633253,-823.53896672,0.00011492,2]
[419727293,1775340633267,-823.53896672,0.00011492,2]
[419727294,1775340633282,-823.53896672,0.00011492,2]
[419727295,1775340633296,-823.53896672,0.00011492,2]
[419727296,1775340633310,-823.53896672,0.00011492,2]
[419727297,1775340633324,-823.53896672,0.00011492,2]
[419727298,1775340633339,-823.53896672,0.00011492,2]
[419727299,1775340633353,-823.53896672,0.00011492,2]
[419727300,1775340633367,-823.53896672,0.00011492,2]
[419727301,1775340633382,-823.53896672,0.00011492,2]
[419727302,1775340633395,-823.53896672,0.00011492,2]
[419727303,1775340633409,-823.53896672,0.00011492,2]
[419727304,1775340633422,-823.53896672,0.00011492,2]
[419727305,1775340633435,-823.53896672,0.00011492,2]
[419727306,1775340633449,-823.53896672,0.00011492,2]
[419727307,1775340633462,-823.53896672,0.00011492,2]
[419727308,1775340633477,-823.53896672,0.00011492,2]
[419727309,1775340633489,-823.53896672,0.00011492,2]
[419727310,1775340633503,-823.53896672,0.00011492,2]
[419727311,1775340633515,-823.53896672,0.00011492,2]
[419727312,1775340633528,-823.53896672,0.00011492,2]
[419727313,1775340633540,-823.53896672,0.00011492,2]
[419727314,1775340633552,-823.53896672,0.00011492,2]
[419727315,1775340633565,-500.0,0.00011492,2]
[419727316,1775340633578,-23509.34577794,0.00011493,2]
[419727317,1775340633600,-1879.83084661,0.00011493,2]
[419727319,1775340641433,-674.18499106,0.00011493,2]
[419727320,1775340641444,-956.79071888,0.00011493,2]
[419727321,1775340641490,-283462.55811542,0.00011493,2]
[419727322,1775340641499,-2500.0,0.00011519,2]
[419727323,1775340641509,-4085.73173308,0.00011572,2]
[419727324,1775340641518,-164.6633162,0.00011573,2]
[419727325,1775340641527,-1427.44020132,0.00011588,2]
[419727326,1775340641536,-520.0,0.00011599,2]
[419727327,1775340641545,-999.99,0.00011609,2]
[419727329,1775340641554,-8345.68,0.00011609,2]
[419727330,1775340641563,-150.99,0.00011609,2]
[419727331,1775340641572,-4999.99,0.00011609,2]
[419727332,1775340641581,-20900.4,0.00011609,2]
[419727333,1775340641591,-3601.097,0.0001161,2]
[419727334,1775340641600,-176.321,0.0001161,2]
[419727336,1775340641609,-500.0,0.00011613,2]
[419727338,1775340641618,-238.79177315,0.00011613,2]
[419727340,1775340641627,-401.32938555,0.00011613,2]
[419727342,1775340641636,-500.0,0.00011613,2]
[419727344,1775340641645,-325.40861566,0.00011613,2]
[419727346,1775340641654,-500.0,0.00011613,2]
[419727348,1775340641663,-205.68419329,0.00011613,2]
[419727350,1775340641672,-500.0,0.00011613,2]
[419727352,1775340641681,-617.09988344,0.00011613,2]
[419727354,1775340641690,-29684.17,0.00011614,2]
[419727356,1775340641701,-1266.82,0.00011614,2]
[419727358,1775340641710,-299.99,0.00011614,2]
[419727360,1775340641719,-150.99,0.00011614,2]
[419727362,1775340641728,-9277.79,0.00011614,2]
[419727363,1775340641738,-9999.99,0.00011614,2]
[419727364,1775340641747,-200.0,0.00011614,2]
[419727365,1775340641757,-151.0,0.00011614,2]
[419727366,1775340641767,-151.0,0.00011614,2]
[419727367,1775340641779,-151.0,0.00011614,2]
[419727368,1775340641789,-151.0,0.00011614,2]
[419727369,1775340641798,-151.0,0.00011614,2]
[419727370,1775340641808,-151.0,0.00011614,2]
[419727371,1775340641817,-151.0,0.00011614,2]
[419727372,1775340641826,-151.0,0.00011614,2]
[419727373,1775340641835,-151.0,0.00011614,2]
[419727374,1775340641844,-161.0,0.00011622,2]
[419727375,1775340641854,-30714.87942069,0.00011652,2]
[419727376,1775340641863,-500.0,0.00011673,2]
[419727377,1775340641871,-500.0,0.00011673,2]
[419727378,1775340641880,-500.0,0.00011673,2]
[419727379,1775340641890,-1100.0,0.000117,4]
[419727380,1775340641899,-205.48,0.00011742,2]
[419727381,1775340641909,-500.0,0.00011766,2]
[419727382,1775340641919,-1191.0,0.0001177,2]
[419727383,1775340641927,-301.0,0.00011786,2]
[419727384,1775340641936,-2200.0,0.000118,4]
[419727385,1775340641945,-192.0,0.00011859,2]
[419727386,1775340641955,-30714.87942069,0.00011883,2]
[419727387,1775340641964,-3300.0,0.000119,4]
[419727388,1775340641973,-668.25449663,0.00011937,2]
[419727389,1775340641982,-1000.0,0.00012021,2]
[419727390,1775340641991,-1000.0,0.00012021,2]
[419727391,1775340642000,-1000.0,0.00012021,2]
[419727392,1775340642009,-1000.0,0.00012021,2]
[419727393,1775340642020,-1000.0,0.00012021,2]
[419727394,1775340642029,-1000.0,0.00012021,2]
[419727395,1775340642038,-220.78759916,0.00012021,2]
[419727396,1775340642047,-411.03320816,0.0001204,2]
[419727397,1775340642057,-5481.25054759,0.00012059,2]
[419727398,1775340642066,-6381.44639255,0.00012068,2]
[419727399,1775340642076,-30714.87942069,0.00012114,2]
[419727400,1775340642085,-200.0,0.00012162,2]
[419727401,1775340642094,-2308.05161507,0.00012213,2]
[419727402,1775340642103,-1000.0,0.00012221,2]
[419727403,1775340642112,-1000.0,0.00012221,2]
[419727404,1775340642122,-1000.0,0.00012221,2]
[419727405,1775340642131,-151.0,0.00012245,2]
[419727406,1775340642140,-30714.87942069,0.00012345,2]
[419727407,1775340642149,-205.48,0.0001236,2]
[419727408,1775340642159,-287.65,0.00012361,2]
[419727409,1775340642168,-255.0,0.00012559,2]
[419727410,1775340642177,-1680.0,0.00012562,2]
[419727411,1775340642187,-1500.0,0.00012568,2]
[419727412,1775340642196,-1500.0,0.00012568,2]
[419727413,1775340642205,-503.33902611,0.00012568,2]
[419727414,1775340642214,-1500.0,0.00012568,2]
[419727415,1775340642223,-1500.0,0.00012568,2]
[419727416,1775340642232,-1500.0,0.00012568,2]
[419727417,1775340642241,-30714.87942069,0.00012575,2]
[419727418,1775340642250,-5481.25054759,0.00012699,2]
[419727419,1775340642260,-1500.0,0.00012768,2]
[419727420,1775340642269,-1500.0,0.00012768,2]
[419727421,1775340642278,-1500.0,0.00012768,2]
[419727422,1775340642287,-30714.87942069,0.00012806,2]
[419727423,1775340642296,-150.0,0.0001288,2]
[419727425,1775340642305,-4400.0,0.000129,4]
[419727426,1775340642315,-150.0,0.00012974,2]
[419727427,1775340642323,-150.0,0.00012974,2]
[419727428,1775340642333,-150.0,0.00012974,2]
[419727430,1775340642342,-216.19443643,0.00012974,2]
[419727432,1775340642351,-205.48,0.00012978,2]
[419727434,1775340642360,-672.0,0.00012979,2]
[419727436,1775340642370,-672.0,0.00012979,2]
[419727438,1775340642379,-672.0,0.00012979,2]
[419727439,1775340642388,-672.0,0.00012979,2]
[419727440,1775340642398,-672.0,0.00012979,2]
[419727441,1775340642407,-672.0,0.00012979,2]
[419727443,1775340642417,-672.0,0.00012979,2]
[419727445,1775340642426,-672.0,0.00012979,2]
[419727447,1775340642435,-672.0,0.00012979,2]
[419727449,1775340642444,-672.0,0.00012979,2]
[419727451,1775340642453,-672.0,0.00012979,2]
[419727453,1775340642462,-672.0,0.00012979,2]
[419727455,1775340642471,-672.0,0.00012979,2]
[419727457,1775340642480,-672.0,0.00012979,2]
[419727458,1775340642489,-672.0,0.00012979,2]
[419727459,1775340642498,-672.0,0.00012979,2]
[419727460,1775340642507,-672.0,0.00012979,2]
[419727461,1775340642516,-672.0,0.00012979,2]
[419727462,1775340642525,-672.0,0.00012979,2]
[419727463,1775340642535,-672.0,0.00012979,2]
[419727464,1775340642544,-672.0,0.00012979,2]
[419727465,1775340642553,-672.0,0.00012979,2]
[419727466,1775340642562,-672.0,0.00012979,2]
[419727467,1775340642572,-692.53940565,0.00012979,2]
[419727468,1775340642583,-84014.97067756,0.00012999,2]
[419727469,1775340642593,-250.0,0.00013,2]
[419727470,1775340642603,-1809.16663198,0.00013,15]
[419727471,1775340642613,-4381.0,0.00013,2]
[419727472,1775340642622,-30714.87942069,0.00013037,2]
[419727473,1775340642632,-5389.8813808,0.0001305,2]
[419727474,1775340642640,-2000.0,0.00013116,2]
[419727475,1775340642649,-2000.0,0.00013116,2]
[419727476,1775340642660,-1339.64282887,0.00013116,2]
[419727477,1775340642668,-2000.0,0.00013116,2]
[419727478,1775340642678,-1001.67855026,0.00013116,2]
[419727479,1775340642687,-36287.8161148,0.00013149,2]
[419727480,1775340642697,-439.52007211,0.00013258,2]
[419727481,1775340642706,-30714.87942069,0.00013268,2]
[419727482,1775340642716,-1102.78280616,0.00013316,2]
[419727483,1775340642725,-2000.0,0.00013316,2]
[419727484,1775340642736,-298.88224457,0.00013316,2]
[419727485,1775340642745,-593.580673,0.00013326,2]
[419727486,1775340642755,-292.455941,0.00013326,2]
[419727487,1775340642764,-5481.25054759,0.00013339,2]
[419727488,1775340642773,-36287.8161148,0.00013374,2]
[419727489,1775340642782,-1000.0,0.00013453,2]
[419727490,1775340642791,-273.4396,0.00013498,2]
[419727491,1775340642800,-30714.87942069,0.00013499,2]
[419727492,1775340642810,-5394.69197319,0.00013499,2]
[419727493,1775340642819,-198.39010279,0.00013499,2]
[419727494,1775340642828,-5533.0,0.000135,3]
[419727495,1775340642838,-439.52007211,0.00013588,2]
[419727496,1775340642847,-205.48,0.00013597,2]
[419727497,1775340642856,-169.36199739,0.00013597,2]
[419727498,1775340642866,-383.787478,0.00013598,2]
[419727499,1775340642875,-383.787478,0.00013598,2]
[419727500,1775340642887,-383.787478,0.00013598,2]
[419727501,1775340642897,-383.787478,0.00013598,2]
[419727502,1775340642906,-451.57947,0.00013598,2]
[419727503,1775340642915,-451.57947,0.00013598,2]
[419727504,1775340642924,-755.627624,0.00013598,2]
[419727505,1775340642933,-451.57947,0.00013598,2]
[419727506,1775340642942,-755.627624,0.00013598,2]
[419727507,1775340642951,-451.57947,0.00013598,2]
[419727508,1775340642960,-755.627624,0.00013598,2]
[419727509,1775340642969,-755.627624,0.00013598,2]